{"text_format":"3","workbook":"xlsx","n_sheets":4,"sheets":["Resumen","Activos","Deudas","Categorías"],"not_rendered":{"defined_names":10},"read":"whole","date_system":"1900"}

{"sheet":"Resumen","index":0,"n_rows":12,"n_cols":4,"rows_kept":12}
[null,"Balance de situación"]
[null,null,{"$f":"\"FY-\"&YEAR(TODAY())-1","v":"FY-2022"},{"$f":"\"FY-\"&YEAR(TODAY())","v":"FY-2023"}]
[null,"Tipo de activos","Año anterior","Año actual"]
[null,"Activos actuales",{"$f":"SUMIFS(Activos[Año anterior],Activos[Tipo de activos],Panel[[#This Row],[Tipo de activos]])+SUMIFS(Deudas[Año anterior],Deudas[Tipo de deuda],Panel[[#This Row],[Tipo de activos]])","v":600},{"$f":"SUMIFS(Activos[Año actual],Activos[Tipo de activos],Panel[[#This Row],[Tipo de activos]])+SUMIFS(Deudas[Año actual],Deudas[Tipo de deuda],Panel[[#This Row],[Tipo de activos]])","v":600}]
[null,"Activo fijo",{"$f":"SUMIFS(Activos[Año anterior],Activos[Tipo de activos],Panel[[#This Row],[Tipo de activos]])+SUMIFS(Deudas[Año anterior],Deudas[Tipo de deuda],Panel[[#This Row],[Tipo de activos]])","v":{"v":-100,"d":"-100 "}},{"$f":"SUMIFS(Activos[Año actual],Activos[Tipo de activos],Panel[[#This Row],[Tipo de activos]])+SUMIFS(Deudas[Año actual],Deudas[Tipo de deuda],Panel[[#This Row],[Tipo de activos]])","v":{"v":-85,"d":"-85 "}}]
[null,"Otros activos",{"$f":"SUMIFS(Activos[Año anterior],Activos[Tipo de activos],Panel[[#This Row],[Tipo de activos]])+SUMIFS(Deudas[Año anterior],Deudas[Tipo de deuda],Panel[[#This Row],[Tipo de activos]])","v":0},{"$f":"SUMIFS(Activos[Año actual],Activos[Tipo de activos],Panel[[#This Row],[Tipo de activos]])+SUMIFS(Deudas[Año actual],Deudas[Tipo de deuda],Panel[[#This Row],[Tipo de activos]])","v":0}]
[null,"Deudas actuales",{"$f":"SUMIFS(Activos[Año anterior],Activos[Tipo de activos],Panel[[#This Row],[Tipo de activos]])+SUMIFS(Deudas[Año anterior],Deudas[Tipo de deuda],Panel[[#This Row],[Tipo de activos]])","v":500},{"$f":"SUMIFS(Activos[Año actual],Activos[Tipo de activos],Panel[[#This Row],[Tipo de activos]])+SUMIFS(Deudas[Año actual],Deudas[Tipo de deuda],Panel[[#This Row],[Tipo de activos]])","v":350}]
[null,"Deudas a largo plazo",{"$f":"SUMIFS(Activos[Año anterior],Activos[Tipo de activos],Panel[[#This Row],[Tipo de activos]])+SUMIFS(Deudas[Año anterior],Deudas[Tipo de deuda],Panel[[#This Row],[Tipo de activos]])","v":0},{"$f":"SUMIFS(Activos[Año actual],Activos[Tipo de activos],Panel[[#This Row],[Tipo de activos]])+SUMIFS(Deudas[Año actual],Deudas[Tipo de deuda],Panel[[#This Row],[Tipo de activos]])","v":0}]
[null,"Capital propio",{"$f":"SUMIFS(Activos[Año anterior],Activos[Tipo de activos],Panel[[#This Row],[Tipo de activos]])+SUMIFS(Deudas[Año anterior],Deudas[Tipo de deuda],Panel[[#This Row],[Tipo de activos]])","v":0},{"$f":"SUMIFS(Activos[Año actual],Activos[Tipo de activos],Panel[[#This Row],[Tipo de activos]])+SUMIFS(Deudas[Año actual],Deudas[Tipo de deuda],Panel[[#This Row],[Tipo de activos]])","v":350}]
[null,"Total de activos",{"$f":"Activos[[#Totals],[Año anterior]]","v":500},{"$f":"Activos[[#Totals],[Año actual]]","v":515}]
[null,"Total de deudas y capital fiscal",{"$f":"Deudas[[#Totals],[Año anterior]]","v":500},{"$f":"Deudas[[#Totals],[Año actual]]","v":700}]
[null,"Saldo",{"$f":"C10-C11","v":0},{"$f":"D10-D11","v":{"v":-185,"d":"-185 "}}]

{"sheet":"Activos","index":1,"n_rows":14,"n_cols":5,"rows_kept":14}
[null,"Activos"]
[{"$nulls":3},{"$f":"EJERCICIO","v":"FY-2022"},{"$f":"EJERCICIO_2","v":"FY-2023"}]
[null,"Tipo de activos","Descripción","Año anterior","Año actual"]
[null,"Activos actuales","Efectivo",600,600]
[null,"Activos actuales","Inversiones"]
[null,"Activos actuales","Existencias"]
[null,"Activos actuales","Cuentas por cobrar"]
[null,"Activos actuales","Gastos prepagados"]
[null,"Activo fijo","Propiedad y equipos"]
[null,"Activo fijo","Mejoras de arrendamiento"]
[null,"Activo fijo","Capital y otras inversiones"]
[null,"Activo fijo","Menos amortización acumulada (valor negativo)",{"v":-100,"d":"-100 "},{"v":-85,"d":"-85 "}]
[null,"Otros activos","Beneficencia"]
[null,"Total de activos",null,{"$f":"SUBTOTAL(109,Activos[Año anterior])","v":500},{"$f":"SUBTOTAL(109,Activos[Año actual])","v":515}]

{"sheet":"Deudas","index":2,"n_rows":12,"n_cols":5,"rows_kept":12}
[null,"Deudas"]
[{"$nulls":3},{"$f":"EJERCICIO","v":"FY-2022"},{"$f":"EJERCICIO_2","v":"FY-2023"}]
[null,"Tipo de deuda","Descripción","Año anterior","Año actual"]
[null,"Deudas actuales","Cuentas por pagar",null,350]
[null,"Deudas actuales","Sueldo acumulado"]
[null,"Deudas actuales","Compensación acumulada",500]
[null,"Deudas actuales","Impuestos sobre ingresos por pagar"]
[null,"Deudas actuales","Ingresos no devengados"]
[null,"Deudas a largo plazo","Hipoteca por pagar"]
[null,"Capital propio","Capital de inversión",null,350]
[null,"Capital propio","Ganancias retenidas acumuladas"]
[null,"Total de deudas y capital fiscal",null,{"$f":"SUBTOTAL(109,Deudas[Año anterior])","v":500},{"$f":"SUBTOTAL(109,Deudas[Año actual])","v":700}]

{"sheet":"Categorías","index":3,"n_rows":9,"n_cols":2,"rows_kept":9}
[null,"Categorías"]
[]
[null,"Categorías"]
[null,"Activos actuales"]
[null,"Activo fijo"]
[null,"Otros activos"]
[null,"Deudas actuales"]
[null,"Deudas a largo plazo"]
[null,"Capital propio"]